fUST/lending_fUST_20240618
["ID","MTS","AMOUNT","RATE_DAILY","PERIOD"]
[329828425,1718719845392,-500.0,0.00019921,2]
[329828428,1718719845408,-500.0,0.00019921,2]
[329828430,1718719845417,-500.0,0.00019921,2]
[329828432,1718719845426,-500.0,0.00019921,2]
[329828434,1718719845436,-500.0,0.00019921,2]
[329828436,1718719845445,-503.31787149,0.00019921,2]
[329828438,1718719845454,-501.70814878,0.00019921,2]
[329828440,1718719845464,-500.0,0.00019921,2]
[329828442,1718719845473,-510.43487049,0.00019921,2]
[329828444,1718719845482,-581.7779418,0.00019921,2]
[329828445,1718719845492,-991.57,0.00019921,2]
[329828447,1718719845502,-596.57,0.00019921,2]
[329828449,1718719845512,-500.0,0.00019921,2]
[329828451,1718719845522,-500.0,0.00019921,2]
[329828453,1718719845532,-500.0,0.00019921,2]
[329828455,1718719845542,-500.0,0.00019921,2]
[329828457,1718719845554,-500.0,0.00019921,2]
[329828459,1718719845563,-500.0,0.00019921,2]
[329828461,1718719845573,-500.0,0.00019921,2]
[329828463,1718719845582,-408.92905898,0.00019921,2]
[329828465,1718719845592,-500.0,0.00019921,2]
[329828467,1718719845601,-500.0,0.00019921,2]
[329828469,1718719845611,-500.0,0.00019921,2]
[329828471,1718719845621,-500.0,0.00019921,2]
[329828473,1718719845630,-500.0,0.00019921,2]
[329828475,1718719845639,-500.0,0.00019921,2]
[329828477,1718719845652,-509.42607985,0.00019921,2]
[329828479,1718719845662,-506.70224077,0.00019921,2]
[329828481,1718719845672,-500.0,0.00019921,2]
[329828483,1718719845681,-500.0,0.00019921,2]
[329828485,1718719845692,-507.16249918,0.00019921,2]
[329828487,1718719845701,-500.0,0.00019921,2]
[329828489,1718719845712,-500.0,0.00019921,2]
[329828491,1718719845722,-500.0,0.00019921,2]
[329828493,1718719845731,-561.34555607,0.00019921,2]
[329828495,1718719845741,-500.0,0.00019921,2]
[329828497,1718719845752,-500.0,0.00019921,2]
[329828499,1718719845765,-502.85004137,0.00019921,2]
[329828501,1718719845774,-500.0,0.00019921,2]
[329828503,1718719845784,-579.66,0.00019921,2]
[329828506,1718719845794,-500.0,0.00019921,2]
[329828507,1718719845803,-500.0,0.00019921,2]
[329828509,1718719845812,-500.0,0.00019921,2]
[329828511,1718719845821,-500.0,0.00019921,2]
[329828513,1718719845831,-500.0,0.00019921,2]
[329828515,1718719845840,-500.0,0.00019921,2]
[329828517,1718719845849,-500.0,0.00019921,2]
[329828519,1718719845858,-500.0,0.00019921,2]
[329828522,1718719845869,-500.0,0.00019921,2]
[329828523,1718719845879,-500.0,0.00019921,2]
[329828525,1718719845889,-500.0,0.00019921,2]
[329828528,1718719845902,-505.55367972,0.00019921,2]
[329828529,1718719845913,-500.0,0.00019921,2]
[329828531,1718719845922,-500.0,0.00019921,2]
[329828533,1718719845931,-500.0,0.00019921,2]
[329828535,1718719845940,-500.0,0.00019921,2]
[329828537,1718719845950,-500.0,0.00019921,2]
[329828539,1718719845960,-500.0,0.00019921,2]
[329828542,1718719845971,-500.0,0.00019921,2]
[329828543,1718719845981,-500.0,0.00019921,2]
[329828545,1718719845991,-500.0,0.00019921,2]
[329828547,1718719846001,-500.0,0.00019921,2]
[329828549,1718719846011,-500.0,0.00019921,2]
[329828551,1718719846020,-497.37720846,0.00019921,2]
[329828553,1718719846030,-500.0,0.00019921,2]
[329828556,1718719846040,-506.05773147,0.00019921,2]
[329828557,1718719846051,-511.37668073,0.00019921,2]
[329828559,1718719846061,-500.0,0.00019921,2]
[329828561,1718719846070,-550.18786116,0.00019922,2]
[329828564,1718719846080,-500.0,0.00019922,2]
[329828565,1718719846090,-500.0,0.00019922,2]
[329828567,1718719846099,-500.0,0.00019922,2]
[329828570,1718719846108,-500.0,0.00019922,2]
[329828571,1718719846118,-500.0,0.00019922,2]
[329828574,1718719846127,-500.0,0.00019922,2]
[329828576,1718719846137,-441.77234693,0.00019922,2]
[329828578,1718719846149,-500.0,0.00019922,2]
[329828580,1718719846158,-500.0,0.00019922,2]
[329828581,1718719846168,-500.0,0.00019922,2]
[329828582,1718719846177,-500.0,0.00019922,2]
[329828583,1718719846187,-500.0,0.00019922,2]
[329828584,1718719846196,-500.0,0.00019922,2]
[329828585,1718719846205,-500.0,0.00019922,2]
[329828586,1718719846216,-551.53,0.00019922,2]
[329828587,1718719846226,-500.0,0.00019922,2]
[329828588,1718719846236,-245.77751905,0.00019922,2]
[329828589,1718719846246,-500.0,0.00019922,2]
[329828590,1718719846255,-500.0,0.00019922,2]
[329828591,1718719846265,-500.0,0.00019922,2]
[329828592,1718719846275,-619.76480088,0.00019922,2]
[329828593,1718719846284,-293.91772068,0.00019922,2]
[329828594,1718719846294,-500.0,0.00019922,2]
[329828595,1718719846303,-527.26021185,0.00019922,2]
[329828596,1718719846313,-187.581081,0.00019922,2]
[329828597,1718719846322,-151.0,0.00019922,2]
[329828598,1718719846332,-151.0,0.00019922,2]
[329828599,1718719846341,-500.0,0.00019922,2]
[329828601,1718719846351,-151.0,0.00019922,2]
[329828602,1718719846360,-151.0,0.00019922,2]
[329828604,1718719846369,-151.0,0.00019922,2]
[329828606,1718719846379,-151.0,0.00019922,2]
[329828609,1718719846388,-151.0,0.00019976,2]
[329828612,1718719846401,-151.0,0.00019976,2]
[329828615,1718719846411,-312.896736,0.00019976,2]
[329828618,1718719846421,-409.259661,0.00019976,2]
[329828621,1718719846430,-151.0,0.00019976,2]
[329828624,1718719846440,-409.259661,0.00019976,2]
[329828627,1718719846450,-151.0,0.00019976,2]
[329828630,1718719846459,-500.0,0.00019976,2]
[329828633,1718719846469,-500.0,0.00019976,2]
[329828636,1718719846478,-399.30539995,0.00019976,2]
[329828639,1718719846488,-151.0,0.00019976,2]
[329828642,1718719846497,-151.0,0.00019976,2]
[329828645,1718719846507,-500.0,0.00019976,2]
[329828648,1718719846516,-500.0,0.00019976,2]
[329828651,1718719846525,-151.0,0.00019976,2]
[329828654,1718719846535,-151.0,0.00019976,2]
[329828657,1718719846544,-151.0,0.00019976,2]
[329828660,1718719846553,-151.0,0.00019976,2]
[329828663,1718719846563,-2839.43545061,0.00019977,2]
[329828666,1718719846573,-532.76623556,0.00019978,2]
[329828668,1718719846583,-151.0,0.00019978,2]
[329828671,1718719846593,-202.20814814,0.00019998,2]
[329828674,1718719846602,-155.01395126,0.00019998,2]
[329828677,1718719846612,-312.896736,0.00019998,2]
[329828679,1718719846621,-129.08653114,0.00019998,2]
[329828682,1718719846636,-280.17312986,0.00019998,2]
[329828684,1718719846647,-151.0,0.00019998,2]
[329828686,1718719846656,-50.34695304,0.00019998,2]
[329828688,1718719846671,-358.91270796,0.00019998,2]
[329828690,1718719846680,-174.484078,0.00019998,2]
[329828692,1718719846691,-151.0,0.00019999,2]
[329828693,1718719846700,-579.66,0.00019999,2]
[329828694,1718719846710,-579.66,0.00019999,2]
[329828695,1718719846721,-195.94657718,0.00019999,2]
[329828696,1718719846733,-383.71342282,0.00019999,2]
[329828697,1718719846742,-579.66,0.00019999,2]
[329828698,1718719846751,-579.66,0.00019999,2]
[329828699,1718719846761,-579.66,0.00019999,2]
[329828700,1718719846771,-198.327144,0.00019999,2]
[329828701,1718719846781,-579.66,0.00019999,2]
[329828702,1718719846790,-151.0,0.00019999,2]
[329828703,1718719846800,-208.022442,0.00019999,2]
[329828704,1718719846809,-151.0,0.00019999,2]
[329828705,1718719846818,-500.0,0.00019999,2]
[329828706,1718719846827,-364.29699118,0.00019999,2]
[329828707,1718719846839,-179.30296593,0.00019999,2]
[329828708,1718719846849,-151.0,0.00019999,2]
[329828709,1718719846859,-2689.32012076,0.0002,15]
[329828710,1718719846869,-2992.89048406,0.0002,2]
[329828911,1718719848808,-500.0,0.0001992,2]
[329828913,1718719848818,-146.17,0.00019976,2]
[329829177,1718720237475,2130.59,0.00026,60]
[329829184,1718720754110,-990.93687004,0.00018432,2]
[329829185,1718720829196,-2393.58507879,0.00018432,2]
[329829186,1718720846095,-4363.89087227,0.00018432,2]
[329829187,1718720846120,-276.8219502,0.00018537,2]
[329829188,1718720846142,-300.0,0.00018949,2]
[329829189,1718720846164,-190.0,0.00018949,2]
[329829190,1718720846184,-282.72272526,0.0001895,2]
[329829191,1718720846210,-411.91631755,0.0001895,2]
[329829192,1718720846230,-1025.41306876,0.0001895,2]
[329829193,1718721019002,19310.61761291,0.00025999,60]
[329829217,1718721034853,-208.59910895,0.0001895,2]
[329829218,1718721034863,-660.53196564,0.00018951,2]
[329829220,1718721034873,-412.03981764,0.00019,2]
[329829223,1718721034885,-354.47705918,0.00019,2]
[329829311,1718721040126,-3557.15,0.00019,2]
[329829344,1718721041148,-1597.80147553,0.00019,2]
[329829345,1718721041159,-473.964876,0.00019096,2]
[329829346,1718721041169,-153.7275268,0.00019752,2]
[329829347,1718721041179,-231.99276033,0.00019809,2]
[329829348,1718721041192,-208.41004302,0.00019821,2]
[329829349,1718721041202,-208.410043,0.00019841,2]
[329829350,1718721041212,-208.410043,0.00019861,2]
[329829351,1718721041221,-208.410043,0.0001988,2]
[329829352,1718721041231,-114.67893633,0.00019899,2]
[329829353,1718721041243,-185.32106367,0.00019899,2]
[329829354,1718721041253,-208.410043,0.000199,2]
[329829355,1718721041266,-593.0,0.000199,2]
[329829356,1718721041275,-1203.64,0.00019919,2]
[329829357,1718721041285,-500.0,0.00019919,2]
[329829358,1718721041294,-500.0,0.00019919,2]
[329829359,1718721041303,-500.0,0.00019919,2]
[329829360,1718721041312,-500.0,0.00019919,2]
[329829361,1718721041322,-500.0,0.00019919,2]
[329829362,1718721041332,-500.0,0.00019919,2]
[329829363,1718721041342,-500.0,0.00019919,2]
[329829364,1718721041351,-500.0,0.00019919,2]
[329829365,1718721041361,-500.0,0.00019919,2]
[329829366,1718721041371,-452.27340533,0.00019919,2]
[329829367,1718721041381,-500.0,0.00019919,2]
[329829368,1718721041391,-805.58,0.00019919,2]
[329829369,1718721041400,-500.0,0.00019919,2]
[329829370,1718721041410,-500.0,0.00019919,2]
[329829371,1718721041419,-500.0,0.00019919,2]
[329829372,1718721041430,-1471.45564532,0.0001992,2]
[329829373,1718721041440,-187.85325105,0.0001992,2]
[329829374,1718721041451,-518.72897501,0.0001992,2]
[329829375,1718721041461,-510.48821151,0.0001992,2]
[329829376,1718721041471,-500.0,0.0001992,2]
[329829377,1718721041480,-500.0,0.0001992,2]
[329829378,1718721041491,-500.0,0.0001992,2]
[329829379,1718721041501,-154.87940511,0.0001992,2]
[329829396,1718721044192,-500.0,0.00019919,2]
[329829400,1718721044202,-345.12059489,0.0001992,2]
[329829404,1718721044211,-500.0,0.0001992,2]
[329829409,1718721044220,-510.52610432,0.0001992,2]
[329829414,1718721044230,-500.0,0.0001992,2]
[329829419,1718721044239,-324.14267893,0.0001992,2]
[329829460,1718721113170,521.13082769,9.999e-05,2]
[329829461,1718721137505,509.39863246,9.999e-05,2]
[329829462,1718721158231,180.57898176,9.999e-05,2]
[329829467,1718721498362,293.16847746,9.999e-05,2]
[329829468,1718721505421,2096.61241162,9.999e-05,2]
[329829472,1718721957177,-308.440363,0.00017902,2]
[329829473,1718721957200,-250.0,0.00017928,2]
[329829474,1718721957224,-167.560996,0.00017953,2]
[329829475,1718721957248,-732.8827837,0.0001872,2]
[329829476,1718721957272,-521.31122835,0.00018779,2]
[329829477,1718721963485,412.02215163,9.999e-05,2]
[329829479,1718722044140,-1844.61858315,0.00018779,2]
[329829480,1718722044162,-3000.0,0.0001884,2]
[329829481,1718722044184,-150.0,0.000189,2]
[329829482,1718722044206,-257.46445177,0.00018996,2]
[329829483,1718722044230,-959.56518373,0.00018996,2]
[329829484,1718722044251,-410.68389917,0.00018997,2]
[329829485,1718722044272,-300.0,0.00018998,2]
[329829486,1718722044294,-300.0,0.00018998,2]
[329829487,1718722044316,-500.0,0.00018999,2]
[329829488,1718722044339,-500.0,0.00018999,2]
[329829489,1718722044361,-500.0,0.00018999,2]
[329829490,1718722044502,-500.0,0.00018999,2]
[329829491,1718722044525,-541.52692614,0.00018999,2]
[329829492,1718722044547,-500.0,0.00018999,2]
[329829493,1718722044571,-1180.88,0.00018999,2]
[329829494,1718722044594,-43.32881425,0.00018999,2]
[329829495,1718722048109,-1137.55118575,0.00018999,2]
[329829496,1718722048133,-500.0,0.00018999,2]
[329829497,1718722048154,-500.0,0.00018999,2]
[329829498,1718722048177,-913.40598498,0.00018999,2]
[329829533,1718722232599,-154.78330338,0.00018998,2]
[329829535,1718722232611,-105.34650651,0.00018999,2]
[329829537,1718722232625,-301.31750851,0.00018999,2]
[329829539,1718722232635,-500.0,0.00018999,2]
[329829541,1718722232645,-500.0,0.00018999,2]
[329829543,1718722232656,-500.0,0.00018999,2]
[329829545,1718722232667,-500.0,0.00018999,2]
[329829547,1718722232677,-500.0,0.00018999,2]
[329829549,1718722232688,-500.0,0.00018999,2]
[329829551,1718722232697,-500.0,0.00018999,2]
[329829553,1718722232708,-500.0,0.00018999,2]
[329829555,1718722232718,-500.0,0.00018999,2]
[329829556,1718722232728,-500.0,0.00018999,2]
[329829558,1718722232738,-500.0,0.00018999,2]
[329829560,1718722232748,-500.0,0.00018999,2]
[329829562,1718722232758,-500.0,0.00018999,2]
[329829564,1718722232767,-500.0,0.00018999,2]
[329829566,1718722232776,-500.0,0.00018999,2]
[329829567,1718722232786,-500.0,0.00018999,2]
[329829569,1718722232795,-500.0,0.00018999,2]
[329829571,1718722232805,-500.0,0.00018999,2]
[329829573,1718722232823,-500.0,0.00018999,2]
[329829575,1718722232832,-500.0,0.00018999,2]
[329829577,1718722232841,-500.0,0.00018999,2]
[329829578,1718722232851,-1082.48,0.00018999,2]
[329829579,1718722232861,-1082.48,0.00018999,2]
[329829580,1718722232870,-500.0,0.00018999,2]
[329829581,1718722232879,-502.71221611,0.00018999,2]
[329829582,1718722232889,-454.9242391,0.00018999,2]
[329829583,1718722232899,-500.0,0.00018999,2]
[329829584,1718722232909,-500.0,0.00018999,2]
[329829585,1718722232919,-500.0,0.00018999,2]
[329829586,1718722232929,-501.90321206,0.00018999,2]
[329829587,1718722232939,-510.87191922,0.00018999,2]
[329829588,1718722232948,-500.0,0.00018999,2]
[329829589,1718722232958,-500.0,0.00018999,2]
[329829590,1718722232967,-500.0,0.00018999,2]
[329829591,1718722232977,-214.95505878,0.00018999,2]
[329829592,1718722232986,-500.0,0.00018999,2]
[329829593,1718722232996,-264.40857223,0.00018999,2]
[329829594,1718722233006,-500.0,0.00018999,2]
[329829595,1718722233016,-500.0,0.00018999,2]
[329829596,1718722233026,-500.0,0.00018999,2]
[329829597,1718722233037,-500.0,0.00018999,2]
[329829598,1718722233048,-500.0,0.00018999,2]
[329829599,1718722233060,-550.89659952,0.00018999,2]
[329829600,1718722233070,-459.84823658,0.00018999,2]
[329829601,1718722233079,-2594.91402383,0.00019,2]
[329829602,1718722233092,-6494.1268145,0.00019,2]
[329829603,1718722233103,-650.26151516,0.00019,2]
[329829612,1718722240210,-964.65,0.00018999,2]
[329829616,1718722240221,-333.54586907,0.00019,2]
[329829621,1718722240234,-69918.83942769,0.00019,2]
[329829623,1718722240245,-450.266632,0.00019096,2]
[329829626,1718722240256,-165.333688,0.00019178,2]
[329829628,1718722240267,-257.46445177,0.0001922,2]
[329829630,1718722240278,-1320.07,0.00019273,2]
[329829632,1718722240288,-337.01781283,0.00019273,2]
[329829634,1718722240299,-500.0,0.00019273,2]
[329829636,1718722240308,-508.38182415,0.00019273,2]
[329829637,1718722240328,-500.0,0.00019273,2]
[329829638,1718722240338,-500.0,0.00019273,2]
[329829639,1718722240349,-500.0,0.00019273,2]
[329829640,1718722240359,-500.0,0.00019273,2]
[329829641,1718722240369,-500.0,0.00019273,2]
[329829642,1718722240380,-964.65,0.00019273,2]
[329829643,1718722240391,-257.46445177,0.00019443,2]
[329829644,1718722240401,-306.0,0.00019452,2]
[329829645,1718722240411,-153.0,0.00019452,2]
[329829646,1718722240422,-153.0,0.000195,2]
[329829647,1718722240432,-1320.07,0.00019547,2]
[329829648,1718722240443,-166.48,0.00019547,2]
[329829649,1718722240453,-335.40989952,0.00019547,2]
[329829650,1718722240466,-500.0,0.00019547,2]
[329829651,1718722240480,-500.0,0.00019547,2]
[329829652,1718722240494,-500.0,0.00019547,2]
[329829653,1718722240715,-964.65,0.00019547,2]
[329829654,1718722240750,-257.46445177,0.00019667,2]
[329829655,1718722240766,-1320.07,0.00019821,2]
[329829656,1718722240778,-500.0,0.00019821,2]
[329829657,1718722240788,-500.0,0.00019821,2]
[329829658,1718722240798,-964.65,0.00019821,2]
[329829659,1718722240808,-153.0,0.00019845,2]
[329829660,1718722240827,-257.46445177,0.0001989,2]
[329829661,1718722240837,-18302.85315009,0.0001989,2]
[329829662,1718722240846,-2703.12077525,0.00019898,2]
[329829663,1718722240856,-2000.0,0.00019899,2]
[329829664,1718722240865,-584.33898339,0.000199,2]
[329829665,1718722240955,-8.66101661,0.000199,2]
[329829666,1718722240965,-363.6816276,0.00019916,2]
[329829667,1718722240975,-775.32644998,0.00019916,2]
[329829668,1718722240985,-220.23496928,0.00019916,2]
[329829669,1718722240995,-500.0,0.00019917,2]
[329829670,1718722241004,-500.0,0.00019917,2]
[329829671,1718722241014,-500.0,0.00019917,2]
[329829672,1718722241024,-508.24146568,0.00019917,2]
[329829673,1718722241034,-395.41976366,0.00019917,2]
[329829692,1718722241544,-146.21832546,0.00019917,2]
[329829694,1718722241554,-500.0,0.00019917,2]
[329829696,1718722241572,-500.0,0.00019917,2]
[329829698,1718722241581,-291.10767454,0.00019917,2]
[329829700,1718722241593,-1961.36275003,0.00019917,2]
[329829702,1718722241604,-468.72957543,0.00019917,2]
[329829704,1718722241614,-500.0,0.00019917,2]
[329829705,1718722241623,-500.0,0.00019917,2]
[329829706,1718722241632,-500.0,0.00019917,2]
[329829707,1718722241643,-548.69,0.00019917,2]
[329829708,1718722241653,-500.0,0.00019917,2]
[329829709,1718722241662,-500.0,0.00019917,2]
[329829710,1718722241672,-500.0,0.00019917,2]
[329829711,1718722241681,-500.0,0.00019917,2]
[329829712,1718722241691,-500.0,0.00019917,2]
[329829713,1718722241701,-500.0,0.00019917,2]
[329829714,1718722241710,-500.0,0.00019917,2]
[329829715,1718722241719,-1082.48,0.00019917,2]
[329829716,1718722241729,-500.0,0.00019917,2]
[329829717,1718722241738,-500.0,0.00019917,2]
[329829718,1718722241747,-500.0,0.00019917,2]
[329829719,1718722241756,-500.0,0.00019917,2]
[329829720,1718722241766,-500.0,0.00019917,2]
[329829721,1718722241775,-428.6,0.00019917,2]
[329829722,1718722241784,-500.0,0.00019917,2]
[329829724,1718722241793,-500.0,0.00019917,2]
[329829725,1718722241802,-500.0,0.00019917,2]
[329829726,1718722241812,-511.67660844,0.00019917,2]
[329829727,1718722241823,-500.0,0.00019917,2]
[329829728,1718722241832,-500.0,0.00019917,2]
[329829729,1718722241841,-500.0,0.00019917,2]
[329829730,1718722241850,-500.0,0.00019917,2]
[329829731,1718722241860,-4810.443372,0.00019918,2]
[329829732,1718722241869,-570.85957129,0.00019918,2]
[329829733,1718722241879,-337.99463448,0.00019918,2]
[329829734,1718722241888,-158.06038721,0.00019918,2]
[329829735,1718722241898,-692.0639849,0.00019918,2]
[329829736,1718722241908,-524.71271013,0.00019918,2]
[329829737,1718722241917,-746.76193428,0.00019918,2]
[329829738,1718722241926,-1518.91993593,0.00019918,2]
[329829739,1718722241936,-400.10210111,0.00019918,2]
[329829740,1718722241945,-183.63846185,0.00019918,2]
[329829741,1718722241955,-500.0,0.00019918,2]
[329829742,1718722241964,-500.0,0.00019918,2]
[329829743,1718722241974,-500.0,0.00019918,2]
[329829744,1718722241983,-329.56637329,0.00019918,2]
[329829745,1718722241993,-500.0,0.00019918,2]
[329829746,1718722242002,-500.0,0.00019918,2]
[329829747,1718722242012,-1082.48,0.00019918,2]
[329829748,1718722242021,-1348.256316,0.00019918,2]
[329829749,1718722242031,-1348.256316,0.00019918,2]
[329829750,1718722242040,-151.0,0.00019918,2]
[329829751,1718722242050,-151.0,0.00019918,2]
[329829752,1718722242060,-151.0,0.00019918,2]
[329829753,1718722242075,-151.0,0.00019918,2]
[329829754,1718722242084,-151.0,0.00019918,2]
[329829755,1718722242093,-151.0,0.00019918,2]
[329829756,1718722242102,-518.62,0.00019918,2]
[329829757,1718722242111,-6394.20341695,0.00019919,15]
[329829758,1718722242119,-1209.22396952,0.00019919,2]
[329829759,1718722242128,-500.0,0.00019919,2]
[329829760,1718722242137,-502.84122606,0.00019919,2]
[329829761,1718722242146,-500.0,0.00019919,2]
[329829762,1718722242156,-500.0,0.00019919,2]
[329829763,1718722242166,-500.0,0.00019919,2]
[329829764,1718722242175,-509.98399029,0.00019919,2]
[329829765,1718722242184,-172.43575819,0.00019919,2]
[329829766,1718722242193,-500.0,0.00019919,2]
[329829767,1718722242203,-642.48336699,0.00019919,2]
[329829768,1718722242213,-500.0,0.00019919,2]
[329829769,1718722242223,-500.0,0.00019919,2]
[329829770,1718722242233,-503.1677417,0.00019919,2]
[329829771,1718722242242,-500.0,0.00019919,2]
[329829772,1718722242252,-500.0,0.00019919,2]
[329829773,1718722242261,-500.0,0.00019919,2]
[329829774,1718722242271,-502.42198833,0.00019919,2]
[329829775,1718722242281,-500.0,0.00019919,2]
[329829776,1718722242291,-500.0,0.00019919,2]
[329829777,1718722242300,-500.0,0.00019919,2]
[329829778,1718722242309,-500.0,0.00019919,2]
[329829779,1718722242324,-502.73501367,0.00019919,2]
[329829780,1718722242334,-501.52737226,0.00019919,2]
[329829781,1718722242344,-506.68650807,0.00019919,2]
[329829782,1718722242353,-506.09129546,0.00019919,2]
[329829783,1718722242363,-502.2244479,0.00019919,2]
[329829784,1718722242372,-516.57052898,0.00019919,2]
[329829785,1718722242381,-514.16608509,0.00019919,2]
[329829786,1718722242391,-505.1978789,0.00019919,2]
[329829787,1718722242401,-501.48129366,0.00019919,2]
[329829788,1718722242410,-500.0,0.00019919,2]
[329829789,1718722242419,-504.48916555,0.00019919,2]
[329829790,1718722242429,-219.26218121,0.00019919,2]
[329829791,1718722242438,-424.21154394,0.00019919,2]
[329829792,1718722242447,-500.0,0.00019919,2]
[329829793,1718722242457,-503.59032397,0.00019919,2]
[329829794,1718722242466,-504.52821848,0.00019919,2]
[329829795,1718722242479,-505.24551806,0.00019919,2]
[329829796,1718722242489,-512.47677426,0.00019919,2]
[329829797,1718722242499,-551.84841927,0.00019919,2]
[329829798,1718722242508,-500.0,0.00019919,2]
[329829799,1718722242517,-503.16365703,0.00019919,2]
[329829800,1718722242531,-504.57945437,0.00019919,2]
[329829801,1718722242541,-151.0,0.00019919,2]
[329829802,1718722242550,-151.0,0.00019919,2]
[329829803,1718722242559,-151.0,0.00019919,2]
[329829804,1718722242574,-151.0,0.00019919,2]
[329829805,1718722242584,-500.0,0.00019919,2]
[329829806,1718722242593,-500.0,0.00019919,2]
[329829807,1718722242603,-506.29097915,0.00019919,2]
[329829808,1718722242612,-500.0,0.00019919,2]
[329829809,1718722242622,-500.0,0.00019919,2]
[329829810,1718722242631,-500.0,0.00019919,2]
[329829811,1718722242640,-151.0,0.00019919,2]
[329829812,1718722242650,-151.0,0.00019919,2]
[329829813,1718722242659,-151.0,0.00019919,2]
[329829814,1718722242669,-558.58,0.00019919,2]
[329829815,1718722242679,-151.920282,0.00019919,2]
[329829816,1718722242688,-500.0,0.00019919,2]
[329829817,1718722242698,-503.74802448,0.00019919,2]
[329829818,1718722242708,-500.0,0.00019919,2]
[329829819,1718722242717,-518.67538867,0.00019919,2]
[329829820,1718722242727,-506.71354051,0.00019919,2]
[329829821,1718722242736,-151.0,0.00019919,2]
[329829822,1718722242746,-151.0,0.00019919,2]
[329829823,1718722242755,-151.0,0.00019919,2]
[329829824,1718722242765,-443.29839865,0.00019919,2]
[329829825,1718722242775,-500.0,0.00019919,2]
[329829826,1718722242785,-500.64974182,0.00019919,2]
[329829827,1718722242795,-503.26002964,0.00019919,2]
[329829828,1718722242806,-207.126712,0.00019919,2]
[329829829,1718722242818,-501.17793679,0.00019919,2]
[329829830,1718722242828,-158.553397,0.00019919,2]
[329829831,1718722242838,-506.82043498,0.00019919,2]
[329829832,1718722242848,-500.0,0.00019919,2]
[329829833,1718722242858,-500.0,0.00019919,2]
[329829834,1718722242868,-500.0,0.00019919,2]
[329829835,1718722242878,-271.16782752,0.00019919,2]
[329829836,1718722242888,-500.0,0.00019919,2]
[329829837,1718722242898,-46.97201579,0.00019919,2]
[329829838,1718722242912,-460.33180557,0.00019919,2]
[329829839,1718722242923,-500.0,0.00019919,2]
[329829840,1718722242932,-172.507132,0.00019919,2]
[329829841,1718722242943,-172.507132,0.00019919,2]
[329829842,1718722242953,-172.507132,0.00019919,2]
[329829843,1718722242963,-172.507132,0.00019919,2]
[329829844,1718722242973,-172.507132,0.00019919,2]
[329829845,1718722242982,-172.507132,0.00019919,2]
[329829846,1718722242992,-172.507132,0.00019919,2]
[329829847,1718722243002,-172.507132,0.00019919,2]
[329829848,1718722243011,-172.507132,0.00019919,2]
[329829849,1718722243022,-172.507132,0.00019919,2]
[329829850,1718722243031,-500.83141582,0.00019919,2]
[329829851,1718722243041,-169.45598296,0.00019919,2]
[329829852,1718722243052,-500.0,0.00019919,2]
[329829853,1718722243061,-345.353364,0.00019919,2]
[329829854,1718722243078,-345.353364,0.00019919,2]
[329829855,1718722243089,-345.353364,0.00019919,2]
[329829856,1718722243099,-345.353364,0.00019919,2]
[329829857,1718722243109,-345.353364,0.00019919,2]
[329829858,1718722243119,-345.353364,0.00019919,2]
[329829859,1718722243128,-345.353364,0.00019919,2]
[329829860,1718722243138,-345.353364,0.00019919,2]